[Event "2nd Serbia Open Masters 2022"]
[Site "Novi Sad"]
[Date "2022.06.28"]
[Round "1.49"]
[White "Suleymenov, Alisher"]
[Black "Bin-Suhayl, Ieysaa"]
[Result "1-0"]
[ECO "D45"]
[WhiteElo "2445"]
[BlackElo "2255"]
[Annotator "TA"]
[PlyCount "53"]
[EventDate "2022.06.28"]
[EventType "swiss"]
[EventCountry "SRB"]
[SourceTitle "playchess.com"]
[Source "ChessBase"]
[SourceQuality "1"]
[TimeControl "40/5400+30:900+30"]

{[%evp 24,53,13,14,13,0,131,66,54,70,104,102,85,95,106,101,192,179,337,337,295,300,398,313,604,575,582,591,582,561,558,552]} 1. d4 {[%emt 0:00:06]} d5 {[%emt 0:00:32]} 2. c4 {[%emt 0:00:14]} c6 {[%emt 0:00:11]} 3. Nc3 {[%emt 0:01:24]} e6 {[%emt 0:06:03]} 4. e3 {[%emt 0:00:08]} Nf6 {[%emt 0:00:15]} 5. Nf3 {[%emt 0:00:08]} Nbd7 {[%emt 0:00:18]} 6. Be2 {[%emt 0:00:08]} Bd6 {[%emt 0:01:27]} 7. O-O {[%emt 0:00:17]} O-O {[%emt 0:05:46]} 8. b3 {[%emt 0:00:05]} dxc4 {[%emt 0:00:50]} 9. bxc4 {[%emt 0:00:09]} e5 {[%emt 0:00:08][%cal Be6e5,Be5e4][%mdl 32]} 10. Bb2 {[%emt 0:15:59]} Re8 {[%emt 0:07:26]} 11. Qc2 {[%emt 0:04:13]} Qe7 {[%emt 0:06:52] was the old line (11...exd4).} 12. Rad1 {[%emt 0:12:13]} e4 {[%emt 0:02:24]} 13. Nd2 {[%emt 0:00:08]} Nf8 {[%emt 0:03:26] D45: Semi-Slav: 5 e3.} 14. d5 {[%emt 0:05:00] [#]} Ng6 $146 {[%emt 0:10:35]} (14... Qe5 15. g3 Qe7 16. dxc6 $16) (14... Bf5 $11) ({Predecessor:} 14... Bf5 15. dxc6 bxc6 16. Nb3 Qc7 17. h3 Qe7 18. Na4 Ng6 19. Rd2 Rac8 20. Rfd1 Bb8 21. Bf1 {0-1 (43) Dinh,N (1525)-Tong,T (2190) Bac Giang 2020}) 15. c5 {[%emt 0:05:13]} ({Better is} 15. dxc6 $1 $16 {[%cal Od2e4] aiming for Ndxe4!} bxc6 16. Ncxe4 $1) 15... Bxc5 $14 {[%emt 0:16:47] White is slightly better.} 16. dxc6 {[%emt 0:00:06][%cal Oc3e4]} bxc6 {[%emt 0:19:05] [#]} 17. Ncxe4 $1 {[%emt 0:00:22][%mdl 512]} Nxe4 {[%emt 0:00:15]} 18. Nxe4 {[%emt 0:00:04][%cal Bd2e4,Be4g3,Bg3h5,Bh5g7][%mdl 32]} Bb4 {[%emt 0:02:04]} (18... Qxe4 19. Qxc5 Nh4 20. f3 $16 (20. Qg5 Ng6 $16)) 19. Ng3 {[%emt 0:03:42] White is much more active.} Ne5 {[%emt 0:05:40] [#]} (19... Rb8 $16 {was worth a try.}) 20. Rd4 $1 $18 {[%emt 0:06:49] And now Re4 would win.} Ba3 $2 {[%emt 0:09:40]} (20... Ng6 21. Bd3 (21. Qxc6 Rb8 $16) 21... Qc5) 21. Ba1 {[%emt 0:03:46]} Ng6 {[%emt 0:00:43]} 22. Re4 {[%emt 0:04:15]} ({Don't do} 22. Qxc6 $6 Be6 23. Re4 Qc5 $16) 22... Be6 {[%emt 0:00:29]} 23. Nh5 {[%emt 0:03:03]} Bf5 $2 {[%emt 0:00:06] [#]} (23... Qc5 24. Qxc5 Bxc5 25. Nxg7 Re7 26. Nxe6 Rxe6) 24. Qc3 $1 {[%emt 0:00:24][%csl Ga1,Gh5][%cal Rc3g7] White is clearly winning.} Qf8 {[%emt 0:00:15]} 25. Rxe8 {[%emt 0:00:52]} Rxe8 {[%emt 0:00:02]} 26. Qxg7+ {[%emt 0:01:46]} Qxg7 {[%emt 0:00:01]} 27. Nxg7 {[%emt 0:00:06] Weighted Error Value: White=0.10 (very precise) /Black=0.73} ({Less strong is} 27. Bxg7 Rd8 28. Bc3 h6 $16) 1-0

[Event "2nd Serbia Open Masters 2022"]
[Site "Novi Sad"]
[Date "2022.06.28"]
[Round "1.50"]
[White "Mullick, Raahil"]
[Black "Cabarkapa, Novak"]
[Result "1-0"]
[ECO "B32"]
[WhiteElo "2237"]
[BlackElo "2466"]
[Annotator "TA"]
[PlyCount "65"]
[EventDate "2022.06.28"]
[EventType "swiss"]
[EventCountry "SRB"]
[SourceTitle "playchess.com"]
[Source "ChessBase"]
[SourceQuality "1"]
[TimeControl "40/5400+30:900+30"]

{[%evp 14,65,35,29,31,17,17,13,16,22,21,22,15,11,6,11,5,18,14,-4,29,-30,0,-15,-29,-10,6,0,35,51,85,99,92,61,37,35,122,123,102,104,141,140,197,200,367,334,570,617,639,401,29983,1351,1250,1234]} 1. e4 {[%emt 0:00:04]} c5 {[%emt 0:00:05]} 2. Nf3 {[%emt 0:00:19][%cal Bg1f3,Bf3d4,Bd4b5,Bb5a3,Ba3c4,Bc4e3][%mdl 32]} Nc6 {[%emt 0:00:06]} 3. d4 {[%emt 0:00:11]} cxd4 {[%emt 0:00:06]} 4. Nxd4 {[%emt 0:00:59]} e5 {[%emt 0:00:07]} 5. Nb5 {[%emt 0:00:06]} d6 {[%emt 0:00:08]} 6. N1c3 {[%emt 0:00:07]} a6 {[%emt 0:00:16]} 7. Na3 {[%emt 0:00:02]} Be6 {[%emt 0:00:12]} 8. Nc4 {[%emt 0:02:10]} Rb8 {[%emt 0:00:37] The modern move. B32: Sicilian: Löwenthal and Kalashnikov Variations.} 9. Ne3 {[%emt 0:01:48]} Nf6 {[%emt 0:03:18]} 10. g3 {[%emt 0:03:09]} h5 {[%emt 0:00:26] The position is equal.} 11. h4 {[%emt 0:00:53] [#]} Rc8 $146 {[%emt 0:00:30]} ({Predecessor:} 11... Be7 12. Bg2 Ng4 13. Ncd5 Qd7 14. Nb6 Qd8 15. Nbd5 b5 16. c3 Qd7 17. O-O Bd8 {½-½ (56) So,W (2770)-Radjabov,T (2765) chess24.com INT 2020}) 12. Bg2 {[%emt 0:05:29]} g6 {[%emt 0:00:07]} 13. O-O {[%emt 0:01:11]} Bh6 {[%emt 0:00:09]} 14. Ncd5 {[%emt 0:08:43]} Bxd5 {[%emt 0:11:09]} 15. exd5 {[%emt 0:01:57]} Ne7 {[%emt 0:01:31]} 16. Qd3 {[%emt 0:08:43]} Ng4 {[%emt 0:20:29]} 17. b3 {[%emt 0:16:12]} ({Better is} 17. Nxg4 hxg4 18. Bxh6 Rxh6 19. Rfe1) 17... Bxe3 $11 {[%emt 0:17:14]} 18. Bxe3 {[%emt 0:18:50]} Nxe3 {[%emt 0:08:33]} 19. fxe3 {[%emt 0:00:10][%cal Bf2e3,Be3e4][%mdl 32]} Nf5 {[%emt 0:10:28]} 20. Rf3 {[%emt 0:06:38]} Qe7 {[%emt 0:12:31] [#] Threatens to win with ...e4.} 21. e4 {[%emt 0:06:15]} Nd4 {[%emt 0:00:09]} 22. Rf2 {[%emt 0:00:01]} O-O {[%emt 0:05:13]} 23. Raf1 {[%emt 0:05:05]} Rc7 {[%emt 0:01:50]} 24. Bh3 {[%emt 0:02:56] Inhibits Rfc8.} Kg7 {[%emt 0:01:15]} (24... Nb5 $1 $14 25. Be6 Qd8) 25. c3 $16 {[%emt 0:02:57]} Nb5 {[%emt 0:00:06]} 26. Rc1 {[%emt 0:00:46]} Qd8 {[%emt 0:01:11]} 27. Qe3 $36 {[%emt 0:01:47][%mdl 2048] Hoping for a4. Black is under strong pressure. White is more active.} Qb8 {[%emt 0:01:57]} (27... Re7 $16 28. a4 Nc7) 28. a4 $18 {[%emt 0:00:39]} Na7 {[%emt 0:00:55] [#]} (28... Qa7 29. Qd2 Na3) 29. Rcf1 $1 {[%emt 0:01:18] aiming for Rf6.} Nc8 $2 {[%emt 0:01:49]} (29... f6 {might work better.} 30. g4 hxg4) 30. Qg5 {[%emt 0:01:43]} Rxc3 {[%emt 0:01:38]} 31. Be6 {[%emt 0:01:06][%cal Rf2f7][%mdl 64] Pin} Rc7 {[%emt 0:00:59]} (31... Qc7 $18 32. Bxf7 Rxf7 33. Rxf7+ Qxf7) 32. Rf6 {[%emt 0:02:34]} (32. Rf5 $142 Qa7+ 33. Kh2 Qe3 34. Qxe3 f6 35. R5f2 b5 36. Bxc8 Rcf7 37. Bxa6) 32... Qa7+ {[%emt 0:00:23]} 33. Kh2 {[%emt 0:00:40] Weighted Error Value: White=0.17 (very precise) /Black=0.51} ({Not} 33. Kh1 Qd4 $11) 1-0

[Event "2nd Serbia Open Masters 2022"]
[Site "Novi Sad"]
[Date "2022.06.28"]
[Round "1.51"]
[White "Arnaudov, G. Petar"]
[Black "Mihov, Filip"]
[Result "1-0"]
[ECO "E05"]
[WhiteElo "2467"]
[BlackElo "2235"]
[Annotator "TA"]
[PlyCount "97"]
[EventDate "2022.06.28"]
[EventType "swiss"]
[EventCountry "SRB"]
[SourceTitle "playchess.com"]
[Source "ChessBase"]
[SourceQuality "1"]
[TimeControl "40/5400+30:900+30"]

{[%evp 15,97,-26,-29,-16,0,-21,0,-50,-38,-55,0,0,-9,-12,0,-14,-18,-17,-7,-14,-16,-17,-9,-19,-16,-143,-54,-54,-54,-56,-31,-66,-60,-70,-66,-79,-63,-59,-52,-73,-15,-12,0,0,0,0,0,0,-1,0,0,0,0,-74,-1,-4,0,0,0,0,0,0,0,0,5920,2089,29969,-9,29969,29971,29968,29969,29982,29983,29983,29984,29984,29970,29983,29984,29984,856,29985,29985]} 1. Nf3 {[%emt 1:31:00]} d5 {[%emt 1:31:00]} 2. g3 {[%emt 0:00:30]} Nf6 {[%emt 0:00:30]} 3. Bg2 {[%emt 0:00:30]} e6 {[%emt 0:00:30]} 4. O-O {[%emt 0:00:30]} Be7 {[%emt 0:00:30]} 5. c4 {[%emt 0:00:30]} O-O {[%emt 0:00:30]} 6. d4 {[%emt 0:00:30]} dxc4 {[%emt 0:00:30]} 7. Nc3 {[%emt 0:00:30]} Nc6 {[%emt 0:00:30]} 8. e4 {[%emt 0:00:30]} Rb8 {[%emt 0:00:30] 8...Rb8 is better than 8...a6.} 9. Qe2 {[%emt 0:00:30] E05: Open Catalan: 5 Nf3 Be7.} b5 {[%emt 0:00:30][%cal Bb7b5,Bb5b4][%mdl 32]} 10. Rd1 $1 {[%emt 0:00:30]} b4 {[%emt 0:00:30] [#]} 11. Na4 $146 {[%emt 0:00:30]} (11. d5 $11 exd5 12. Nxd5 Nxd5 13. Be3 (13. Rxd5 Qe8 $15)) ({Predecessor:} 11. d5 bxc3 12. dxc6 Qe8 13. bxc3 Qxc6 14. Bg5 Qc5 15. Be3 Qa5 16. Nd4 {1-0 (30) Delchev,A (2360)-Atanasov,P (2370) Pazardzik 1991}) 11... Na5 {[%emt 0:00:30]} 12. Ne5 {[%emt 0:00:30]} Ba6 {[%emt 0:00:30]} (12... Qe8 $1 $15 13. Nc5 Bxc5 14. dxc5 Nd7 15. Nxc4 Ba6) 13. Nc5 $11 {[%emt 0:00:30]} Bb5 {[%emt 0:00:30]} 14. Qe1 {[%emt 0:00:30]} Nc6 {[%emt 0:00:30]} 15. Be3 {[%emt 0:00:30]} Qe8 {[%emt 0:00:30]} 16. Nxc6 {[%emt 0:00:30]} Bxc6 {[%emt 0:00:30]} 17. Rac1 {[%emt 0:00:30]} Bxc5 {[%emt 0:00:30]} 18. dxc5 {[%emt 0:00:30]} Nxe4 {[%emt 0:00:30] And now ...c3 would win.} 19. Rxc4 {[%emt 0:00:30]} Nf6 {[%emt 0:00:30]} 20. Bh6 {[%emt 0:00:30] [#]} gxh6 {[%emt 0:00:30]} (20... Bxg2 $1 $17 21. Kxg2 Rd8) 21. Qe5 $1 $15 {[%emt 0:00:30]} Bxg2 $1 {[%emt 0:00:30]} 22. Kxg2 {[%emt 0:00:30]} Qe7 {[%emt 0:00:30] Strongly threatening ...Rfd8.} 23. Rdd4 {[%emt 0:00:30][%cal Od4g4]} Rfd8 {[%emt 0:00:30] White must now prevent ...Rxd4.} 24. Rf4 {[%emt 0:00:30] [#]} Rd5 $1 {[%emt 0:00:30]} 25. Qxf6 {[%emt 0:00:30]} Qxf6 {[%emt 0:00:30]} 26. Rxf6 {[%emt 0:00:30][%mdl 4096] Endgame KRR-KRR} Kg7 {[%emt 0:00:30]} 27. Rf3 {[%emt 0:00:30]} Rb5 {[%emt 0:00:30]} (27... c6 $17) 28. Rg4+ {[%emt 0:00:30]} Rg5 {[%emt 0:00:30]} 29. Rgf4 {[%emt 0:00:30]} f5 {[%emt 0:00:30]} ({Don't do} 29... Rgxc5 30. Rxf7+ Kg8 31. a4 bxa3 32. bxa3 $14) 30. Rd3 {[%emt 0:00:30]} Kf6 {[%emt 0:00:30]} 31. Rh4 {[%emt 0:00:30]} h5 {[%emt 0:00:30] next ...Rg4 is good for Black.} 32. c6 {[%emt 0:00:30]} Rb6 {[%emt 0:00:30]} 33. Rd7 {[%emt 0:00:30]} Rxc6 {[%emt 0:00:30]} 34. Rxh7 {[%emt 0:00:30]} (34. Rxb4 $11 {keeps the balance.} Rg7 35. Rd2) 34... Kg6 {[%emt 0:00:30]} (34... a5 $17) 35. Rh8 $11 {[%emt 0:00:30][%cal Bh7h8,Bh8d8,Bd8d7][%mdl 32]} a5 {[%emt 0:00:30]} 36. f4 {[%emt 0:00:30]} Kg7 {[%emt 0:00:30]} 37. Rd8 {[%emt 0:00:30]} Rc2+ {[%emt 0:00:30]} 38. Kf3 {[%emt 0:00:30]} Rg6 {[%emt 0:00:30] Hoping for ...Rh6.} 39. Rxh5 {[%emt 0:00:30]} Rh6 $2 {[%emt 0:00:30][%mdl 8192]} (39... Rxb2 $11 40. Rd7+ Kg8) 40. Rd7+ $18 {[%emt 0:00:30]} Kg6 {[%emt 0:00:30] [#]} 41. Rg5+ $1 {[%emt 0:15:30]} Kf6 {[%emt 0:15:30] Loses the game.} 42. Rgg7 {[%emt 0:00:30][%csl Gg7][%cal Rd7f7]} e5 {[%emt 0:00:30]} 43. Rgf7+ {[%emt 0:00:30]} Ke6 {[%emt 0:00:30]} 44. Rfe7+ {[%emt 0:00:30]} Kf6 {[%emt 0:00:30]} 45. fxe5+ {[%emt 0:00:30]} Kg5 {[%emt 0:00:30]} 46. Rg7+ {[%emt 0:00:30]} Rg6 {[%emt 0:00:30]} 47. h4+ {[%emt 0:00:30]} Kh5 {[%emt 0:00:30]} 48. Rh7+ {[%emt 0:00:30]} Rh6 {[%emt 0:00:30]} 49. Rhf7 {[%emt 0:00:30] Weighted Error Value: White=0.14 (very precise) /Black=0.24 (precise)} 1-0

[Event "2nd Serbia Open Masters 2022"]
[Site "Novi Sad"]
[Date "2022.06.28"]
[Round "1.52"]
[White "Sharma Isha"]
[Black "Nitish Belurkar"]
[Result "0-1"]
[ECO "C07"]
[WhiteElo "2207"]
[BlackElo "2452"]
[Annotator "TA"]
[PlyCount "86"]
[EventDate "2022.06.28"]
[EventType "swiss"]
[EventCountry "SRB"]
[SourceTitle "playchess.com"]
[Source "ChessBase"]
[SourceQuality "1"]
[TimeControl "40/5400+30:900+30"]

{[%evp 10,86,24,27,10,8,12,25,18,18,16,0,37,7,1,2,11,0,0,-27,-30,-37,-33,-45,-36,-41,-34,-68,-72,-72,-46,-50,-52,-63,-66,-65,-59,-52,-35,-49,-61,-87,-88,-88,-93,-191,-152,-159,-98,-300,-291,-293,-271,-338,-314,-308,-256,-364,-301,-451,-495,-683,-681,-764,-768,-783,-752,-1077,-1037,-984,-688,-2497,-2493,-2065,-2002,-29974,-29975,-2355,-1854]} 1. e4 {[%emt 0:00:03]} e6 {[%emt 0:00:11]} 2. d4 {[%emt 0:00:06]} d5 {[%emt 0:00:04]} 3. Nd2 {[%emt 0:00:06]} c5 {[%emt 0:00:04]} 4. exd5 {[%emt 0:00:29]} Qxd5 {[%emt 0:00:09]} 5. Ngf3 {[%emt 0:00:10]} cxd4 {[%emt 0:00:10]} 6. Bc4 {[%emt 0:00:09]} Qd7 {[%emt 0:00:25] C07: French Tarrasch: 3...c5, 4 Ngf3 and 4 exd5 Qxd5.} 7. Nb3 {[%emt 0:02:28]} Nc6 {[%emt 0:05:29]} 8. Nbxd4 {[%emt 0:00:13] 8.Nbxd4 is better than 8.0-0.} Nxd4 {[%emt 0:00:06] White has an edge.} 9. Nxd4 {[%emt 0:00:04]} a6 {[%emt 0:00:09] Prevents Bb5.} 10. Bf4 {[%emt 0:00:05]} Ne7 {[%emt 0:04:52]} 11. Qd2 {[%emt 0:02:24]} Ng6 {[%emt 0:07:42] [#]} 12. Bg3 $146 {[%emt 0:06:44] White wants to play 0-0-0.} ({Predecessor:} 12. O-O-O Bc5 13. Bg3 b5 14. Be2 O-O 15. Qc3 Qa7 16. Bf3 Bb7 17. Nxe6 fxe6 18. Rd7 {1-0 (33) Adams,M (2709)-Suarez Gomez,J (2486) Caleta 2018}) 12... e5 {[%emt 0:06:57]} 13. Nf3 {[%emt 0:01:31]} Qxd2+ {[%emt 0:02:24]} 14. Kxd2 {[%emt 0:02:42]} f6 {[%emt 0:00:27]} 15. Rhe1 {[%emt 0:02:03]} Bf5 {[%emt 0:01:13]} 16. Rad1 {[%emt 0:03:35]} O-O-O+ {[%emt 0:03:04]} 17. Kc1 {[%emt 0:00:07]} Bc5 {[%emt 0:01:49]} 18. Rd5 {[%emt 0:18:29]} Rxd5 {[%emt 0:03:19]} 19. Bxd5 {[%emt 0:00:07]} Rd8 {[%emt 0:02:10]} (19... h5 $5 {[%cal Rh5h4]} 20. Be4 Bxe4 21. Rxe4 Kd7 $17) 20. Rd1 {[%emt 0:04:46][%cal Od5b7]} Rd7 {[%emt 0:05:40]} 21. Nh4 {[%emt 0:12:55]} Nxh4 {[%emt 0:01:31]} 22. Bxh4 {[%emt 0:00:04]} h5 {[%emt 0:04:07] [#] aiming for ...g5.} 23. Bg3 {[%emt 0:01:29]} Bg4 $36 {[%emt 0:06:48][%mdl 2048] Black has good play.} 24. Rd3 {[%emt 0:05:04]} Bd4 {[%emt 0:04:24]} 25. Bf3 {[%emt 0:00:10]} Bxf3 {[%emt 0:04:31]} 26. Rxf3 $17 {[%emt 0:07:29][%mdl 4096] Endgame [#] KRB-KRB} e4 $1 {[%emt 0:06:07][%cal Be5e4,Be4e3][%mdl 32]} 27. Rf4 {[%emt 0:12:26]} (27. Ra3 $17) 27... e3 $19 {[%emt 0:03:53] Hoping for ...Bc5.} 28. c3 {[%emt 0:00:08]} Ba7 {[%emt 0:03:20] Black is more active.} ({Black should try} 28... Bb6 {...e2 is the strong threat.} 29. f3 (29. Rc4+ Kd8 $17) 29... Rd2) 29. Kc2 $2 {[%emt 0:03:21] This costs White the game.} (29. Rc4+ $17 {was worth a try.} Kd8 30. f4) 29... Rd2+ {[%emt 0:01:11]} 30. Kc1 {[%emt 0:00:04]} Re2 {[%emt 0:04:13][%cal Re3f2]} 31. Rc4+ {[%emt 0:03:38]} Kd8 {[%emt 0:00:08]} 32. fxe3 {[%emt 0:02:55]} Bxe3+ {[%emt 0:00:02]} 33. Kb1 {[%emt 0:00:11]} (33. Kd1 {was forced.} Rd2+ 34. Ke1) 33... Rxg2 {[%emt 0:00:06] Strongly threatening ...g5.} 34. Bc7+ {[%emt 0:00:47]} (34. Re4 $142 Bg1 35. Rh4) 34... Kd7 {[%emt 0:02:13]} 35. Bg3 {[%emt 0:00:26]} g5 {[%emt 0:02:07]} 36. Rc7+ {[%emt 0:00:57]} Ke6 {[%emt 0:00:25]} 37. Rxb7 {[%emt 0:01:13]} f5 {[%emt 0:00:20][%cal Bf6f5,Bf5f4,Bf4f3][%mdl 32]} 38. Bc7 {[%emt 0:09:52]} f4 {[%emt 0:00:14] Threatens to win with ...f3.} 39. Bd8 {[%emt 0:00:00]} Bc5 {[%emt 0:05:39] And now ...f3 would win.} 40. Bb6 {[%emt 0:00:00]} Bxb6 {[%emt 0:00:00]} 41. Rxb6+ {[%emt 0:00:00]} Ke5 {[%emt 0:00:15] ( -> ...f3)} 42. Kc1 {[%emt 0:00:00]} f3 {[%emt 0:00:15]} 43. Kd1 {[%emt 0:00:00]} Rg1+ {[%emt 0:00:02] Weighted Error Value: White=0.89/Black=0.13 (very precise)} 0-1

[Event "2nd Serbia Open Masters 2022"]
[Site "Novi Sad"]
[Date "2022.06.29"]
[Round "2.1"]
[White "Sarana, Alexey"]
[Black "Amartuvshin, Ganzorig"]
[Result "1-0"]
[ECO "E51"]
[WhiteElo "2675"]
[BlackElo "2350"]
[Annotator "TA"]
[PlyCount "129"]
[EventDate "2022.06.28"]
[EventType "swiss"]
[EventCountry "SRB"]
[SourceTitle "playchess.com"]
[Source "ChessBase"]
[SourceQuality "1"]
[TimeControl "40/5400+30:900+30"]

{[%evp 13,129,0,2,-7,15,11,24,0,0,0,0,0,0,0,-4,-17,-9,-12,-24,-33,0,-16,-27,-65,0,0,0,0,8,-29,29,13,37,0,0,0,0,0,0,0,0,0,0,6,23,20,24,21,40,43,52,42,52,23,30,0,29,16,37,46,50,34,53,34,46,34,34,34,34,10,23,9,9,0,9,13,12,14,68,41,73,32,106,0,0,-160,304,305,316,268,288,278,342,337,329,316,309,298,319,267,277,283,257,248,598,486,362,272,993,779,6250,6148,5891,5632,2719,2275,1670,1104]} 1. d4 {[%emt 0:00:02]} Nf6 {[%emt 0:00:07]} 2. c4 {[%emt 0:00:05]} e6 {[%emt 0:00:08]} 3. Nc3 {[%emt 0:00:05]} Bb4 {[%emt 0:00:08]} 4. e3 {[%emt 0:00:12]} O-O {[%emt 0:00:12]} 5. Nf3 {[%emt 0:00:13]} d5 {[%emt 0:00:20]} 6. Bd2 {[%emt 0:00:14]} b6 {[%emt 0:04:17]} 7. cxd5 {[%emt 0:00:12]} exd5 {[%emt 0:00:07]} 8. Bd3 {[%emt 0:00:17] E51: Nimzo-Indian: Rubinstein: 4...0-0 5 Nf3 d5.} Ba6 {[%emt 0:05:20]} 9. Bxa6 {[%emt 0:00:17]} Nxa6 {[%emt 0:00:05]} 10. Qa4 {[%emt 0:00:11] White has an edge.} Qc8 {[%emt 0:00:51]} 11. O-O {[%emt 0:00:11]} Be7 {[%emt 0:05:56]} 12. Ne5 {[%emt 0:04:13]} c5 {[%emt 0:02:03]} 13. f4 {[%emt 0:05:37] [#]} Nc7 $146 {[%emt 0:03:16]} ({Predecessor:} 13... Bd6 14. Be1 Qb7 15. Bh4 cxd4 16. exd4 Ne4 17. Nxe4 dxe4 18. Nc4 Bb4 19. Qb5 Rfc8 {½-½ (61) Jimenez Ruano,A (2323)-Rasmussen,A (2569) Benasque 2019}) 14. Be1 {[%emt 0:00:43]} Qe8 {[%emt 0:04:16]} 15. Bh4 {[%emt 0:02:44]} Qxa4 {[%emt 0:02:51]} 16. Nxa4 {[%emt 0:00:03]} c4 {[%emt 0:06:44]} 17. Nc3 {[%emt 0:06:31][%cal Ba4c3,Bc3e2,Be2g3,Bg3f5][%mdl 32]} Rfe8 {[%emt 0:04:55]} 18. a4 {[%emt 0:00:56]} a6 {[%emt 0:03:31]} (18... Bb4 $15) 19. Bxf6 $11 {[%emt 0:05:16]} gxf6 {[%emt 0:00:59]} 20. Nf3 {[%emt 0:00:17]} Bb4 {[%emt 0:10:31]} 21. Kf2 {[%emt 0:00:32]} a5 {[%emt 0:02:12]} (21... Bxc3 $142 22. bxc3 b5) 22. Ne2 {[%emt 0:07:52]} b5 {[%emt 0:00:42]} 23. Rfd1 {[%emt 0:07:34]} bxa4 {[%emt 0:00:41]} 24. Rxa4 {[%emt 0:00:02]} Nb5 {[%emt 0:01:33]} 25. Nh4 {[%emt 0:00:38]} Nd6 {[%emt 0:01:00]} 26. Ng3 {[%emt 0:00:09]} Rab8 {[%emt 0:00:31]} 27. Nhf5 {[%emt 0:00:34]} Nxf5 {[%emt 0:09:45]} 28. Nxf5 {[%emt 0:00:13]} Rb5 {[%emt 0:00:20]} 29. Kf3 {[%emt 0:01:49]} Kf8 {[%emt 0:01:08]} 30. Rc1 {[%emt 0:05:02]} Re6 {[%emt 0:02:57]} 31. Rc2 {[%emt 0:00:16]} Rbb6 {[%emt 0:04:32]} 32. Ke2 {[%emt 0:05:08]} Rb5 {[%emt 0:04:20]} 33. Kd1 {[%emt 0:01:35]} Re4 {[%emt 0:03:20]} 34. Rf2 {[%emt 0:02:17]} Kg8 {[%emt 0:05:00]} 35. Ke2 {[%emt 0:14:02]} Be7 {[%emt 0:02:02]} 36. Kf3 {[%emt 0:00:33][%cal Oa4c4] Rxc4! is the strong threat.} Re6 {[%emt 0:00:25]} 37. Rc2 {[%emt 0:00:45]} Bd8 {[%emt 0:00:51]} 38. Ra2 {[%emt 0:02:18]} Kf8 {[%emt 0:00:50]} 39. Kg4 {[%emt 0:06:00]} Bc7 {[%emt 0:08:34]} 40. Kh5 {[%emt 0:00:00]} Kg8 {[%emt 0:00:00]} 41. Rc3 {[%emt 0:06:33]} Re8 {[%emt 0:03:59]} 42. Kg4 {[%emt 0:00:40]} Kf8 {[%emt 0:01:11]} 43. Rc2 {[%emt 0:02:06]} Rb3 {[%emt 0:02:57]} 44. Re2 {[%emt 0:01:34]} Re4 {[%emt 0:01:17][%cal Oc7f4]} 45. Rf2 {[%emt 0:00:48]} Rd3 {[%emt 0:03:58]} (45... Re8 $11) 46. Ra1 {[%emt 0:02:03]} Re8 {[%emt 0:01:24] [#]} 47. Kh5 $1 {[%emt 0:00:57]} Rb8 {[%emt 0:01:16] [#]} (47... Kg8 $14) 48. Re1 {[%emt 0:00:45]} (48. Kh6 $1 $16) 48... a4 {[%emt 0:00:58]} (48... Rdb3 $5 49. Ree2 a4 $11) 49. Kh6 $2 {[%emt 0:00:26]} ({White should play} 49. Rc2 $11) 49... c3 $2 {[%emt 0:01:43]} (49... a3 $17 {stays on course.} 50. bxa3 Ba5) 50. bxc3 $18 {[%emt 0:01:40]} Rxc3 {[%emt 0:00:08]} 51. Ra1 {[%emt 0:00:16]} a3 {[%emt 0:00:33]} 52. Rfa2 {[%emt 0:00:02]} Rbb3 {[%emt 0:00:11][%cal Oc7f4]} 53. Kxh7 {[%emt 0:00:56]} Ba5 {[%emt 0:01:07]} 54. h4 {[%emt 0:00:03][%cal Bh2h4,Bh4h5,Bh5g6,Bg6g7][%mdl 32]} Bb4 {[%emt 0:00:23]} 55. h5 {[%emt 0:00:03]} Rc8 {[%emt 0:00:21]} 56. g4 {[%emt 0:02:41]} Ra8 {[%emt 0:03:17]} 57. g5 {[%emt 0:06:04]} fxg5 {[%emt 0:00:18]} 58. fxg5 {[%emt 0:00:01] And now g6 would win.} Be7 $2 {[%emt 0:01:10]} (58... Ke8 {is a better chance.} 59. Rf1 Kd7) 59. g6 {[%emt 0:01:43]} fxg6 {[%emt 0:00:33]} 60. hxg6 {[%emt 0:00:03] aiming for g7+.} Bb4 $2 {[%emt 0:00:33]} (60... Bf6 61. Rf2 Rb6 62. g7+ Bxg7) 61. Rf1 {[%emt 0:00:42] Strongly threatening Rc2. White is clearly winning.} Rb2 {[%emt 0:00:17] Prevents Rc2.} 62. g7+ {[%emt 0:01:44]} Kf7 {[%emt 0:00:05]} 63. Ng3+ {[%emt 0:00:28]} Ke6 {[%emt 0:00:15]} 64. Rxb2 {[%emt 0:00:05]} axb2 {[%emt 0:00:04]} 65. Rb1 {[%emt 0:00:06] Weighted Error Value: White=0.20 (precise) /Black=0.36} 1-0